fUSD/lending_fUSD_20260531
["ID","MTS","AMOUNT","RATE_DAILY","PERIOD"]
[423491073,1780161041000,-500.0,0.00025799,2]
[423491072,1780161041000,-1344.57,0.00025799,2]
[423491069,1780161041000,-1004.48,0.00025753,2]
[423491068,1780161041000,-634.0,0.00025226,10]
[423491074,1780161041000,-3300.0,0.000259,9]
[423491077,1780161041000,-550.0,0.00026,2]
[423491057,1780161041000,-209.0,0.00025,2]
[423491107,1780161041000,-661.56,0.0002755,30]
[423491140,1780161041000,-150.0,0.000279,2]
[423491108,1780161041000,-249.35,0.0002755,2]
[423491142,1780161041000,-150.0,0.000279,2]
[423491144,1780161041000,-251.16,0.00027916,2]
[423491153,1780161041000,-614.52,0.00028033,30]
[423491152,1780161041000,-530.8,0.00028033,30]
[423491150,1780161041000,-249.35,0.00028007,2]
[423491145,1780161041000,-249.35,0.00027946,7]
[423491146,1780161041000,-251.16,0.00027946,7]
[423491147,1780161041000,-249.35,0.00027977,30]
[423491148,1780161041000,-251.16,0.00027977,30]
[423491149,1780161041000,-600.0,0.00028,2]
[423491167,1780161041000,-661.56,0.00028194,7]
[423491157,1780161041000,-249.35,0.00028068,30]
[423491165,1780161041000,-530.8,0.00028194,7]
[423491155,1780161041000,-249.35,0.00028038,7]
[423491154,1780161041000,-661.56,0.00028033,30]
[423491166,1780161041000,-614.52,0.00028194,7]
[423491159,1780161041000,-500.0,0.00028097,7]
[423491160,1780161041000,-249.35,0.00028099,2]
[423491161,1780161041000,-251.16,0.00028099,2]
[423491158,1780161041000,-251.16,0.00028068,30]
[423491163,1780161041000,-249.41,0.0002813,7]
[423491156,1780161041000,-251.16,0.00028038,7]
[423491164,1780161041000,-251.16,0.0002813,7]
[423491170,1780161041000,-152.83663662,0.00028197,2]
[423491168,1780161041000,-168.37227839,0.00028197,2]
[423491171,1780161041000,-212.35722319,0.00028197,2]
[423491103,1780161041000,-200.0,0.00027421,2]
[423491143,1780161041000,-249.35,0.00027916,2]
[423491141,1780161041000,-150.0,0.000279,2]
[423491162,1780161041000,-500.0,0.00028129,7]
[423491137,1780161041000,-249.35,0.00027885,30]
[423491151,1780161041000,-251.16,0.00028007,2]
[423491112,1780161041000,-249.35,0.00027611,30]
[423491110,1780161041000,-249.35,0.0002758,7]
[423491113,1780161041000,-251.16,0.00027611,30]
[423491117,1780161041000,-251.16,0.00027672,7]
[423491119,1780161041000,-251.16,0.00027702,30]
[423491123,1780161041000,-249.35,0.00027733,2]
[423491125,1780161041000,-249.35,0.00027763,7]
[423491127,1780161041000,-249.35,0.00027794,30]
[423491120,1780161041000,-530.8,0.00027711,7]
[423491124,1780161041000,-251.16,0.00027733,2]
[423491116,1780161041000,-249.35,0.00027672,7]
[423491118,1780161041000,-249.35,0.00027702,30]
[423491126,1780161041000,-251.16,0.00027763,7]
[423491115,1780161041000,-251.16,0.00027641,2]
[423491122,1780161041000,-661.56,0.00027711,7]
[423491121,1780161041000,-614.52,0.00027711,7]
[423491138,1780161041000,-251.16,0.00027885,30]
[423491134,1780161041000,-530.8,0.00027872,2]
[423491136,1780161041000,-661.56,0.00027872,2]
[423491132,1780161041000,-1000.0,0.00027855,4]
[423491135,1780161041000,-614.52,0.00027872,2]
[423491130,1780161041000,-251.16,0.00027824,2]
[423491129,1780161041000,-249.35,0.00027824,2]
[423491131,1780161041000,-249.35,0.00027855,7]
[423491139,1780161041000,-150.0,0.000279,2]
[423491133,1780161041000,-251.16,0.00027855,7]
[423491128,1780161041000,-251.16,0.00027794,30]
[423491169,1780161041000,-218.34425507,0.00028197,2]
[423491208,1780161042000,-406.08192973,0.000295,43]
[423491200,1780161042000,-159.61511117,0.000295,64]
[423491204,1780161042000,-361.37712794,0.000295,43]
[423491203,1780161042000,-361.37712794,0.000295,43]
[423491205,1780161042000,-389.85076581,0.000295,43]
[423491197,1780161042000,-215.58360558,0.00029,30]
[423491202,1780161042000,-230.01583763,0.000295,43]
[423491212,1780161042000,-446.13114947,0.000295,43]
[423491206,1780161042000,-389.85076581,0.000295,43]
[423491207,1780161042000,-406.08192973,0.000295,43]
[423491201,1780161042000,-230.01583763,0.000295,43]
[423491223,1780161042000,-3638.0,0.00029544,2]
[423491211,1780161042000,-446.13114947,0.000295,43]
[423491209,1780161042000,-417.72149054,0.000295,43]
[423491213,1780161042000,-167.92145702,0.000295,43]
[423491214,1780161042000,-1000.0,0.00029519,6]
[423491216,1780161042000,-169.22346525,0.0002952,2]
[423491215,1780161042000,-336.74455677,0.0002952,2]
[423491217,1780161042000,-436.68851014,0.0002952,2]
[423491222,1780161042000,-932.0,0.00029544,2]
[423491198,1780161042000,-307.43907439,0.00029457,2]
[423491220,1780161042000,-325.36785137,0.00029525,2]
[423491210,1780161042000,-417.72149054,0.000295,43]
[423491196,1780161042000,-265.92,0.00029,8]
[423491184,1780161042000,-530.8,0.00028677,7]
[423491195,1780161042000,-265.92,0.00029,8]
[423491218,1780161042000,-305.67327324,0.0002952,2]
[423491172,1780161042000,-162.68392568,0.00028201,2]
[423491173,1780161042000,-200.0,0.00028205,2]
[423491174,1780161042000,-151.8,0.00028267,2]
[423491175,1780161042000,-530.8,0.00028355,2]
[423491176,1780161042000,-614.52,0.00028355,2]
[423491177,1780161042000,-661.56,0.00028355,2]
[423491179,1780161042000,-4931.132917,0.00028475,2]
[423491189,1780161042000,-661.56,0.00028838,2]
[423491180,1780161042000,-1217.67,0.000285,14]
[423491182,1780161042000,-614.52,0.00028516,30]
[423491183,1780161042000,-661.56,0.00028516,30]
[423491181,1780161042000,-530.8,0.00028516,30]
[423491185,1780161042000,-614.52,0.00028677,7]
[423491178,1780161042000,-5506.88416644,0.00028475,2]
[423491187,1780161042000,-530.8,0.00028838,2]
[423491188,1780161042000,-614.52,0.00028838,2]
[423491186,1780161042000,-661.56,0.00028677,7]
[423491191,1780161042000,-200.0,0.00028989,2]
[423491190,1780161042000,-150.0,0.00028897,2]
[423491193,1780161042000,-614.57,0.00029,30]
[423491192,1780161042000,-530.85,0.00029,30]
[423491194,1780161042000,-661.61,0.00029,30]
[423491199,1780161042000,-1000.0,0.00029499,64]
[423491221,1780161042000,-3550.0,0.00029544,2]
[423491227,1780161042000,-150.0,0.00029564,7]
[423491269,1780161042000,-458.50990986,0.00030402,2]
[423491253,1780161042000,-150.0,0.00030034,7]
[423491255,1780161042000,-150.0,0.00030128,7]
[423491248,1780161042000,-150.0,0.00029846,7]
[423491251,1780161042000,-650.0,0.0003,2]
[423491257,1780161042000,-200.0,0.00030137,2]
[423491252,1780161042000,-150.0,0.00030002,7]
[423491258,1780161042000,-150.0,0.00030162,7]
[423491261,1780161042000,-150.0,0.00030221,7]
[423491262,1780161042000,-151.8,0.00030239,2]
[423491260,1780161042000,-150.0,0.00030221,7]
[423491254,1780161042000,-150.0,0.00030112,7]
[423491265,1780161042000,-505.11683516,0.00030402,2]
[423491263,1780161042000,-150.0,0.00030315,7]
[423491268,1780161042000,-655.03276521,0.00030402,2]
[423491264,1780161042000,-150.0,0.00030341,2]
[423491270,1780161042000,-637.07166956,0.00030402,2]
[423491266,1780161042000,-338.4469305,0.00030402,2]
[423491273,1780161042000,-222.66514663,0.00030402,2]
[423491271,1780161042000,-241.5267967,0.00030402,2]
[423491274,1780161042000,-488.05177705,0.00030407,2]
[423491272,1780161042000,-278.43618106,0.00030402,2]
[423491219,1780161042000,-424.71444637,0.0002952,2]
[423491267,1780161042000,-228.34467194,0.00030402,2]
[423491250,1780161042000,-150.0,0.0002994,7]
[423491256,1780161042000,-213.32,0.00030137,2]
[423491249,1780161042000,-150.0,0.00029863,7]
[423491229,1780161042000,-150.0,0.00029564,7]
[423491231,1780161042000,-158.0,0.00029605,30]
[423491226,1780161042000,-150.0,0.00029564,7]
[423491228,1780161042000,-150.0,0.00029564,7]
[423491225,1780161042000,-150.0,0.00029564,7]
[423491232,1780161042000,-209.0,0.00029605,30]
[423491224,1780161042000,-150.0,0.00029564,7]
[423491259,1780161042000,-428.68,0.000302,2]
[423491234,1780161042000,-215.0,0.00029605,30]
[423491233,1780161042000,-152.0,0.00029605,30]
[423491236,1780161042000,-152.0,0.00029607,30]
[423491235,1780161042000,-329.0,0.00029607,30]
[423491230,1780161042000,-150.0,0.00029564,7]
[423491240,1780161042000,-156.0,0.00029607,30]
[423491246,1780161042000,-200.0,0.00029774,2]
[423491237,1780161042000,-153.0,0.00029607,30]
[423491239,1780161042000,-154.0,0.00029607,30]
[423491238,1780161042000,-360.0,0.00029607,30]
[423491241,1780161042000,-705.0,0.00029607,30]
[423491242,1780161042000,-184.0,0.00029607,30]
[423491244,1780161042000,-1000.0,0.000297,7]
[423491243,1780161042000,-150.0,0.00029658,7]
[423491247,1780161042000,-150.0,0.00029783,7]
[423491245,1780161042000,-150.0,0.00029752,7]
[423491322,1780161043000,-214.31825418,0.0003099,2]
[423491321,1780161043000,-456.68934388,0.0003099,2]
[423491331,1780161043000,-295.89912205,0.0003099,2]
[423491333,1780161043000,-849.42889274,0.0003099,2]
[423491324,1780161043000,-873.37702028,0.0003099,2]
[423491310,1780161043000,-150.0,0.00030878,7]
[423491329,1780161043000,-611.34654649,0.0003099,2]
[423491326,1780161043000,-326.10559878,0.0003099,2]
[423491312,1780161043000,-150.0,0.00030972,7]
[423491308,1780161043000,-150.0,0.00030878,7]
[423491320,1780161043000,-507.67039575,0.0003099,2]
[423491317,1780161043000,-245.15934067,0.0003099,2]
[423491335,1780161043000,-483.05359339,0.0003099,2]
[423491359,1780161043000,-150.0,0.00031097,7]
[423491352,1780161043000,-186.5907854,0.00030995,2]
[423491353,1780161043000,-210.01590651,0.00030995,2]
[423491354,1780161043000,-370.09098357,0.00030995,2]
[423491351,1780161043000,-162.61222582,0.00030995,2]
[423491355,1780161043000,-650.73570274,0.00030995,2]
[423491340,1780161043000,-154.56903594,0.0003099,2]
[423491350,1780161043000,-445.33029326,0.0003099,2]
[423491344,1780161043000,-166.69904823,0.0003099,2]
[423491347,1780161043000,-156.67200247,0.0003099,2]
[423491348,1780161043000,-376.91567119,0.0003099,2]
[423491349,1780161043000,-261.44901681,0.0003099,2]
[423491298,1780161043000,-4931.132917,0.00030615,2]
[423491338,1780161043000,-556.87236211,0.0003099,2]
[423491300,1780161043000,-150.0,0.00030659,7]
[423491277,1780161043000,-150.0,0.0003044,7]
[423491304,1780161043000,-150.0,0.00030759,7]
[423491275,1780161043000,-150.0,0.00030409,7]
[423491282,1780161043000,-708.93,0.0003057,120]
[423491280,1780161043000,-150.0,0.00030503,7]
[423491276,1780161043000,-164.37,0.00030411,120]
[423491283,1780161043000,-177.07014009,0.00030576,2]
[423491278,1780161043000,-150.0,0.0003046,7]
[423491279,1780161043000,-1217.67,0.000305,14]
[423491281,1780161043000,-200.0,0.00030558,2]
[423491295,1780161043000,-705.0,0.00030607,30]
[423491284,1780161043000,-150.0,0.00030597,7]
[423491285,1780161043000,-500.0,0.00030603,2]
[423491293,1780161043000,-154.0,0.00030607,30]
[423491287,1780161043000,-209.0,0.00030605,30]
[423491286,1780161043000,-158.0,0.00030605,30]
[423491289,1780161043000,-329.0,0.00030607,30]
[423491288,1780161043000,-215.0,0.00030605,30]
[423491291,1780161043000,-153.0,0.00030607,30]
[423491292,1780161043000,-360.0,0.00030607,30]
[423491290,1780161043000,-152.0,0.00030607,30]
[423491294,1780161043000,-156.0,0.00030607,30]
[423491297,1780161043000,-5506.88416644,0.00030615,2]
[423491296,1780161043000,-184.0,0.00030607,30]
[423491306,1780161043000,-150.0,0.00030785,7]
[423491301,1780161043000,-150.0,0.00030691,7]
[423491314,1780161043000,-673.48911354,0.0003099,2]
[423491299,1780161043000,-150.0,0.00030659,7]
[423491361,1780161043000,-1000.0,0.00031183,8]
[423491342,1780161043000,-337.75016351,0.0003099,2]
[423491360,1780161043000,-150.0,0.0003116,7]
[423491401,1780161043000,-200.0,0.00032055,2]
[423491390,1780161043000,-150.0,0.00031655,7]
[423491396,1780161043000,-150.0,0.00031858,2]
[423491394,1780161043000,-699.528858,0.00031795,30]
[423491391,1780161043000,-150.0,0.00031723,7]
[423491397,1780161043000,-150.0,0.00031911,7]
[423491399,1780161043000,-150.0,0.00031973,7]
[423491395,1780161043000,-150.0,0.00031817,7]
[423491393,1780161043000,-150.0,0.00031754,7]
[423491392,1780161043000,-150.0,0.00031754,7]
[423491398,1780161043000,-150.0,0.00031953,7]
[423491400,1780161043000,-150.0,0.00032005,7]
[423491384,1780161043000,-360.0,0.00031607,30]
[423491402,1780161043000,-535.38,0.00032064,7]
[423491406,1780161043000,-150.0,0.00032192,7]
[423491405,1780161043000,-150.0,0.00032192,7]
[423491403,1780161043000,-150.0,0.00032098,7]
[423491413,1780161043000,-150.0,0.00032286,7]
[423491411,1780161043000,-1000.0,0.0003223,90]
[423491410,1780161043000,-151.8,0.0003221,5]
[423491408,1780161043000,-1217.67,0.000322,14]
[423491414,1780161043000,-1000.0,0.00032293,9]
[423491407,1780161043000,-210.3,0.000322,12]
[423491409,1780161043000,-227.14,0.000322,12]
[423491416,1780161043000,-150.0,0.0003238,7]
[423491358,1780161043000,-200.0,0.00031096,2]
[423491404,1780161043000,-200.0,0.00032126,2]
[423491380,1780161043000,-215.0,0.00031605,30]
[423491412,1780161043000,-150.0,0.00032252,7]
[423491379,1780161043000,-209.0,0.00031605,30]
[423491386,1780161043000,-156.0,0.00031607,30]
[423491356,1780161043000,-150.0,0.00031058,7]
[423491362,1780161043000,-281.95,0.000312,7]
[423491357,1780161043000,-150.0,0.00031066,7]
[423491364,1780161043000,-150.0,0.00031207,7]
[423491363,1780161043000,-225.56,0.000312,7]
[423491415,1780161043000,-150.0,0.00032302,7]
[423491365,1780161043000,-150.0,0.00031207,7]
[423491368,1780161043000,-150.0,0.00031316,7]
[423491367,1780161043000,-2318.0,0.00031283,3]
[423491372,1780161043000,-250.0,0.00031371,7]
[423491369,1780161043000,-200.0,0.00031342,2]
[423491371,1780161043000,-150.0,0.00031356,7]
[423491366,1780161043000,-150.0,0.00031254,7]
[423491373,1780161043000,-150.0,0.00031441,7]
[423491385,1780161043000,-154.0,0.00031607,30]
[423491374,1780161043000,-150.0,0.00031535,7]
[423491383,1780161043000,-153.0,0.00031607,30]
[423491381,1780161043000,-329.0,0.00031607,30]
[423491389,1780161043000,-150.0,0.00031629,7]
[423491382,1780161043000,-152.0,0.00031607,30]
[423491387,1780161043000,-705.0,0.00031607,30]
[423491378,1780161043000,-158.0,0.00031605,30]
[423491376,1780161043000,-764.18318311,0.00031579,2]
[423491375,1780161043000,-150.0,0.00031535,7]
[423491370,1780161043000,-150.0,0.00031348,7]
[423491377,1780161043000,-813.41962842,0.00031583,2]
[423491388,1780161043000,-184.0,0.00031607,30]
[423491434,1780161044000,-156.0,0.00032607,30]
[423491437,1780161044000,-150.0,0.0003263,7]
[423491430,1780161044000,-152.0,0.00032607,30]
[423491431,1780161044000,-153.0,0.00032607,30]
[423491432,1780161044000,-360.0,0.00032607,30]
[423491429,1780161044000,-329.0,0.00032607,30]
[423491438,1780161044000,-150.0,0.00032662,7]
[423491427,1780161044000,-209.0,0.00032605,30]
[423491428,1780161044000,-215.0,0.00032605,30]
[423491418,1780161044000,-200.0,0.00032461,2]
[423491421,1780161044000,-3550.0,0.00032544,2]
[423491420,1780161044000,-150.0,0.00032474,7]
[423491417,1780161044000,-150.0,0.00032411,7]
[423491422,1780161044000,-932.0,0.00032544,2]
[423491425,1780161044000,-150.0,0.00032568,7]
[423491419,1780161044000,-976.10355411,0.00032466,2]
[423491423,1780161044000,-3638.0,0.00032544,2]
[423491426,1780161044000,-158.0,0.00032605,30]
[423491436,1780161044000,-184.0,0.00032607,30]
[423491424,1780161044000,-150.0,0.00032551,7]
[423491435,1780161044000,-705.0,0.00032607,30]
[423491442,1780161044000,-150.0,0.00032849,7]
[423491446,1780161044000,-150.0,0.00032849,7]
[423491457,1780161044000,-8926.6786955,0.00032854,2]
[423491458,1780161044000,-1617.4061896,0.00032854,2]
[423491456,1780161044000,-114026.7340136,0.00032854,6]
[423491455,1780161044000,-500.0,0.00032853,2]
[423491454,1780161044000,-500.0,0.00032853,2]
[423491433,1780161044000,-154.0,0.00032607,30]
[423491451,1780161044000,-301.80996815,0.00032853,120]
[423491453,1780161044000,-1344.57,0.00032853,2]
[423491452,1780161044000,-1344.57,0.00032853,2]
[423491459,1780161044000,-7862.91938769,0.00032854,2]
[423491441,1780161044000,-150.0,0.00032755,7]
[423491443,1780161044000,-150.0,0.00032849,7]
[423491440,1780161044000,-4931.132917,0.00032754,2]
[423491447,1780161044000,-169.54995982,0.00032849,7]
[423491448,1780161044000,-500.0,0.00032853,120]
[423491449,1780161044000,-407.88275073,0.00032853,120]
[423491445,1780161044000,-150.0,0.00032849,7]
[423491444,1780161044000,-150.0,0.00032849,7]
[423491439,1780161044000,-5506.88416644,0.00032754,2]
[423491450,1780161044000,-500.0,0.00032853,120]
[423491469,1780161045000,-963.76004824,0.00032854,2]
[423491466,1780161045000,-29819.01270196,0.00032854,2]
[423491467,1780161045000,-265.96,0.00032854,2]
[423491461,1780161045000,-437.05694,0.00032854,2]
[423491468,1780161045000,-706.28320434,0.00032854,2]
[423491465,1780161045000,-650.66427401,0.00032854,2]
[423491462,1780161045000,-762.15,0.00032854,2]
[423491464,1780161045000,-944.926668,0.00032854,2]
[423491471,1780161045000,-884.13379783,0.00032854,2]
[423491463,1780161045000,-2043.0,0.00032854,2]
[423491470,1780161045000,-1691.43098692,0.00032854,2]
[423491472,1780161045000,-333.26194966,0.00027397,10]
[423491482,1780161045000,-444.69912942,0.00025637,2]
[423491480,1780161045000,-211.51532558,0.000135,2]
[423491473,1780161045000,-19161.39805034,0.00027397,10]
[423491481,1780161045000,-712.0,0.00025082,2]
[423491478,1780161045000,-5316.64604073,0.00032854,2]
[423491474,1780161045000,-115171.02342221,0.00032854,2]
[423491475,1780161045000,-213446.6522751,0.00032854,2]
[423491476,1780161045000,-407.61736823,0.00032854,2]
[423491477,1780161045000,-2596.03629927,0.00032854,2]
[423491498,1780161046000,-249.83,0.00027702,30]
[423491502,1780161046000,-249.83,0.00027824,2]
[423491501,1780161046000,-249.83,0.00027794,30]
[423491494,1780161046000,-249.83,0.0002758,7]
[423491493,1780161046000,-249.83,0.0002755,2]
[423491495,1780161046000,-249.83,0.00027611,30]
[423491497,1780161046000,-249.83,0.00027672,7]
[423491496,1780161046000,-249.83,0.00027641,2]
[423491489,1780161046000,-712.0,0.00026192,3]
[423491491,1780161046000,-712.0,0.00026746,3]
[423491492,1780161046000,-712.0,0.00027301,4]
[423491499,1780161046000,-249.83,0.00027733,2]
[423491500,1780161046000,-249.83,0.00027763,7]
[423491488,1780161046000,-267.30087058,0.00025637,2]
[423491487,1780161046000,-418.0,0.00023713,2]
[423491486,1780161046000,-418.0,0.00020713,2]
[423491490,1780161046000,-418.0,0.00026713,2]
[423491503,1780161046000,-249.83,0.00027855,7]
[423491511,1780161046000,-418.0,0.00029713,2]
[423491509,1780161046000,-712.0,0.00028965,6]
[423491531,1780161046000,-9757.48037878,0.00032854,2]
[423491508,1780161046000,-712.0,0.00028411,5]
[423491529,1780161046000,-249.83,0.00027977,30]
[423491521,1780161046000,-4115.76299831,0.000317,5]
[423491519,1780161046000,-1415.23700169,0.000317,5]
[423491527,1780161046000,-5086.38572698,0.00032854,2]
[423491517,1780161046000,-712.0,0.00031184,8]
[423491514,1780161046000,-712.0,0.00030629,7]
[423491523,1780161046000,-712.0,0.00031739,9]
[423491530,1780161046000,-712.0,0.00032294,9]
[423491528,1780161046000,-2212.1415738,0.00032854,2]
[423491525,1780161046000,-1000.0,0.00032126,2]
[423491512,1780161046000,-712.0,0.00030075,7]
[423491506,1780161046000,-249.83,0.00027916,2]
[423491507,1780161046000,-249.83,0.00027946,7]
[423491505,1780161046000,-249.83,0.00027885,30]
[423491510,1780161046000,-712.0,0.0002952,6]
[423491504,1780161046000,-712.0,0.00027856,4]
[423491526,1780161046000,-172.23700169,0.00032854,2]
[423491545,1780161067000,200.0,0.00027124,120]
[423491546,1780161067000,200.0,0.00024715,120]
[423491547,1780161068000,200.0,0.00024909,120]
[423491549,1780161068000,224.50796366,0.00024909,120]
[423491548,1780161068000,200.0,0.00024909,120]
[423491553,1780162127000,1422.5010225,0.00028082,120]
[423491562,1780162232000,-258.8155,0.00012108,2]
[423491561,1780162232000,-187.99,0.00011996,2]
[423491563,1780162232000,-460.51088961,0.00012443,2]
[423491566,1780162232000,-187.99,0.00012628,2]
[423491565,1780162232000,-1088.35,0.00012506,2]
[423491564,1780162232000,-7832.15911039,0.00012443,2]
[423491570,1780162232000,-800.0,0.000128,4]
[423491568,1780162232000,-168.42,0.00012739,2]
[423491567,1780162232000,-990.31,0.00012739,2]
[423491571,1780162232000,-1600.0,0.000129,4]
[423491569,1780162232000,-2000.0,0.00012739,2]
[423491578,1780162232000,-15611.38649113,0.0001295,2]
[423491572,1780162232000,-500.0,0.00012947,2]
[423491575,1780162232000,-998.78,0.00012948,2]
[423491573,1780162232000,-500.0,0.00012947,2]
[423491576,1780162232000,-150.0,0.00012949,2]
[423491577,1780162232000,-7623.46415342,0.0001295,2]
[423491581,1780162232000,-62403.03061926,0.0001295,2]
[423491579,1780162232000,-9262.90087722,0.0001295,2]
[423491582,1780162232000,-58868.52126895,0.0001295,2]
[423491583,1780162232000,-6727.8399879,0.0001295,2]
[423491580,1780162232000,-5191.54365359,0.0001295,2]
[423491584,1780162232000,-3586.54368669,0.0001295,2]
[423491574,1780162232000,-201.28797162,0.00012947,2]
[423491611,1780162239000,-4564.92581818,0.0001295,2]
[423491612,1780162239000,-538.715813,0.0001295,2]
[423491620,1780162241000,-5277.58322911,0.00013,5]
[423491619,1780162241000,-410.295,0.00013,5]
[423491618,1780162241000,-5615.69806934,0.00013,5]
[423491616,1780162241000,-213702.64373066,0.0001295,2]
[423491617,1780162241000,-5681.6582,0.00013,2]
[423491658,1780162244000,-1000.0,0.000135,2]
[423491661,1780162244000,-150.0,0.00013684,2]
[423491656,1780162244000,-6136.5148,0.00013499,2]
[423491662,1780162244000,-509.66155533,0.00013698,2]
[423491660,1780162244000,-348.36663496,0.00013599,2]
[423491664,1780162244000,-500.0,0.00013698,2]
[423491663,1780162244000,-500.0,0.00013698,2]
[423491673,1780162244000,-500.0,0.00013698,2]
[423491666,1780162244000,-500.0,0.00013698,2]
[423491667,1780162244000,-500.0,0.00013698,2]
[423491665,1780162244000,-500.0,0.00013698,2]
[423491670,1780162244000,-500.0,0.00013698,2]
[423491669,1780162244000,-500.0,0.00013698,2]
[423491672,1780162244000,-500.0,0.00013698,2]
[423491674,1780162244000,-500.0,0.00013698,2]
[423491659,1780162244000,-200.0,0.00013552,2]
[423491668,1780162244000,-500.0,0.00013698,2]
[423491657,1780162244000,-2000.0,0.00013499,2]
[423491648,1780162244000,-1569.89349719,0.00013399,2]
[423491654,1780162244000,-1101.40459724,0.00013498,3]
[423491636,1780162244000,-13034.06305405,0.00013,5]
[423491637,1780162244000,-13962.44804907,0.00013,15]
[423491642,1780162244000,-1004.48,0.00013106,2]
[423491640,1780162244000,-5419.13555538,0.0001305,2]
[423491638,1780162244000,-175.908,0.00013,2]
[423491639,1780162244000,-2105.568,0.00013,2]
[423491641,1780162244000,-2198.77,0.00013082,2]
[423491643,1780162244000,-187.99,0.00013259,2]
[423491646,1780162244000,-912.6773,0.00013399,2]
[423491647,1780162244000,-4465.63908587,0.00013399,2]
[423491645,1780162244000,-5000.0,0.00013399,2]
[423491644,1780162244000,-328.86,0.00013299,2]
[423491649,1780162244000,-1004.48,0.00013434,2]
[423491650,1780162244000,-630.17749375,0.00013498,2]
[423491651,1780162244000,-500.0,0.00013498,2]
[423491652,1780162244000,-272.7485293,0.00013498,2]
[423491655,1780162244000,-1101.40459725,0.00013498,3]
[423491675,1780162244000,-616.04,0.00013698,2]
[423491671,1780162244000,-500.0,0.00013698,2]
[423491653,1780162244000,-500.0,0.00013498,2]
[423491676,1780162244000,-500.0,0.00013698,2]
[423491699,1780162244000,-500.0,0.00013698,2]
[423491700,1780162244000,-500.0,0.00013698,2]
[423491703,1780162244000,-500.0,0.00013698,2]
[423491702,1780162244000,-500.0,0.00013698,2]
[423491704,1780162244000,-307.08,0.00013698,2]
[423491701,1780162244000,-500.0,0.00013698,2]
[423491705,1780162244000,-500.0,0.00013698,2]
[423491707,1780162244000,-500.0,0.00013698,2]
[423491706,1780162244000,-377.06035753,0.00013698,2]
[423491708,1780162244000,-645.86663214,0.00013698,2]
[423491709,1780162244000,-500.0,0.00013698,2]
[423491713,1780162244000,-500.0,0.00013698,2]
[423491711,1780162244000,-500.0,0.00013698,2]
[423491712,1780162244000,-500.0,0.00013698,2]
[423491714,1780162244000,-500.0,0.00013698,2]
[423491715,1780162244000,-508.40286137,0.00013698,2]
[423491677,1780162244000,-500.0,0.00013698,2]
[423491697,1780162244000,-500.0,0.00013698,2]
[423491698,1780162244000,-500.0,0.00013698,2]
[423491710,1780162244000,-500.0,0.00013698,2]
[423491696,1780162244000,-500.0,0.00013698,2]
[423491695,1780162244000,-500.0,0.00013698,2]
[423491681,1780162244000,-639.96506873,0.00013698,2]
[423491680,1780162244000,-410.30161227,0.00013698,2]
[423491679,1780162244000,-500.0,0.00013698,2]
[423491682,1780162244000,-500.0,0.00013698,2]
[423491684,1780162244000,-500.0,0.00013698,2]
[423491683,1780162244000,-500.0,0.00013698,2]
[423491686,1780162244000,-500.0,0.00013698,2]